[Event "NJSK 2022 Jeugd C"]
[Site "Almelo, Netherlands"]
[Date "2022.05.03"]
[Round "4.12"]
[White "Venema, Maxime"]
[Black "Bosma, Jonathan"]
[Result "1-0"]
[TimeControl "90min + 30sec/move"]
[WhiteElo "1614"]
[BlackElo "884"]

1. d4 {[%clk 01:30:59]} {[%emt 00:00:01]} Nf6 {[%clk 01:30:51]} {[%emt
00:00:09]} 2. c4 {[%clk 01:31:25]} {[%emt 00:00:03]} e6 {[%clk 01:31:17]}
{[%emt 00:00:05]} 3. Nc3 {[%clk 01:31:47]} {[%emt 00:00:07]} Bb4 {[%clk
01:31:39]} {[%emt 00:00:09]} 4. Nf3 {[%clk 01:31:58]} {[%emt 00:00:19]} d5
{[%clk 01:31:11]} {[%emt 00:00:57]} 5. Bg5 {[%clk 01:32:12]} {[%emt 00:00:17]}
h6 {[%clk 01:28:32]} {[%emt 00:03:09]} 6. Bf4 {[%clk 01:32:29]} {[%emt
00:00:12]} c5 {[%clk 01:26:57]} {[%emt 00:02:05]} 7. e3 {[%clk 01:32:27]}
{[%emt 00:00:33]} Nc6 {[%clk 01:24:52]} {[%emt 00:02:36]} 8. Bd3 {[%clk
01:32:12]} {[%emt 00:00:44]} Bxc3+ {[%clk 01:23:05]} {[%emt 00:02:17]} 9. bxc3
{[%clk 01:32:31]} {[%emt 00:00:11]} O-O {[%clk 01:22:56]} {[%emt 00:00:39]} 10.
O-O {[%clk 01:32:44]} {[%emt 00:00:17]} b6 {[%clk 01:22:19]} {[%emt 00:01:07]}
11. cxd5 {[%clk 01:33:02]} {[%emt 00:00:11]} Nxd5 {[%clk 01:21:31]} {[%emt
00:01:19]} 12. Bg3 {[%clk 01:29:58]} {[%emt 00:03:34]} Nxc3 {[%clk 01:21:30]}
{[%emt 00:00:32]} 13. Qc2 {[%clk 01:30:21]} {[%emt 00:00:07]} Nd5 {[%clk
01:21:03]} {[%emt 00:00:57]} 14. dxc5 {[%clk 01:30:14]} {[%emt 00:00:36]} Ndb4
{[%clk 01:20:20]} {[%emt 00:01:13]} 15. Bh7+ {[%clk 01:30:28]} {[%emt
00:00:16]} Kh8 {[%clk 01:20:45]} {[%emt 00:00:05]} 16. Qb1 {[%clk 01:29:41]}
{[%emt 00:01:17]} Ba6 {[%clk 01:14:18]} {[%emt 00:06:57]} 17. Rd1 {[%clk
01:28:26]} {[%emt 00:01:45]} Qf6 {[%clk 01:13:00]} {[%emt 00:01:48]} 18. Be4
{[%clk 01:27:22]} {[%emt 00:01:34]} bxc5 {[%clk 01:11:50]} {[%emt 00:01:40]} 19.
Bd6 {[%clk 01:23:11]} {[%emt 00:04:41]} Rfd8 {[%clk 01:10:02]} {[%emt
00:02:17]} 20. Bxc5 {[%clk 01:23:07]} {[%emt 00:00:34]} Rxd1+ {[%clk 01:10:18]}
{[%emt 00:00:15]} 21. Qxd1 {[%clk 01:23:25]} {[%emt 00:00:12]} Rd8 {[%clk
01:10:12]} {[%emt 00:00:36]} 22. Qc1 {[%clk 01:19:40]} {[%emt 00:04:14]} Bc4
{[%clk 01:06:23]} {[%emt 00:04:20]} 23. Rb1 {[%clk 01:16:11]} {[%emt 00:03:59]}
Bd5 {[%clk 01:04:59]} {[%emt 00:01:55]} 24. Bxd5 {[%clk 01:15:28]} {[%emt
00:01:12]} Nxd5 {[%clk 01:05:06]} {[%emt 00:00:23]} 25. Nd4 {[%clk 01:08:51]}
{[%emt 00:07:07]} Nde7 {[%clk 00:55:30]} {[%emt 00:10:06]} 26. Rb7 {[%clk
01:05:50]} {[%emt 00:03:32]} Nxd4 {[%clk 00:52:44]} {[%emt 00:03:15]} 27. Bxd4
{[%clk 01:04:59]} {[%emt 00:01:21]} e5 {[%clk 00:51:47]} {[%emt 00:01:27]} 28.
Bxa7 {[%clk 01:04:14]} {[%emt 00:01:15]} Nc6 {[%clk 00:44:57]} {[%emt
00:07:19]} 29. h3 {[%clk 01:03:15]} {[%emt 00:01:29]} Nxa7 {[%clk 00:44:10]}
{[%emt 00:01:17]} 30. Rxa7 {[%clk 01:03:37]} {[%emt 00:00:08]} g5 {[%clk
00:42:36]} {[%emt 00:02:04]} 31. a4 {[%clk 01:03:42]} {[%emt 00:00:26]} Kg7
{[%clk 00:42:44]} {[%emt 00:00:21]} 32. a5 {[%clk 01:03:52]} {[%emt 00:00:20]}
Rd5 {[%clk 00:40:34]} {[%emt 00:02:41]} 33. Ra8 {[%clk 01:01:20]} {[%emt
00:03:02]} g4 {[%clk 00:31:36]} {[%emt 00:09:28]} 34. Qc8 {[%clk 00:56:00]}
{[%emt 00:05:51]} Rd1+ {[%clk 00:31:28]} {[%emt 00:00:37]} 35. Kh2 {[%clk
00:56:16]} {[%emt 00:00:13]} h5 {[%clk 00:28:33]} {[%emt 00:03:26]} 36. Qh8+
{[%clk 00:56:21]} {[%emt 00:00:25]} Kg6 {[%clk 00:27:46]} {[%emt 00:01:16]} 37.
Rg8+ {[%clk 00:56:32]} {[%emt 00:00:20]} Kf5 {[%clk 00:27:51]} {[%emt
00:00:25]} 38. e4+ {[%clk 00:56:39]} {[%emt 00:00:22]} Ke6 {[%clk 00:26:59]}
{[%emt 00:01:21]} 39. Re8+ {[%clk 00:56:51]} {[%emt 00:00:19]} Qe7 {[%clk
00:26:17]} {[%emt 00:01:12]} 40. Rxe7+ {[%clk 00:57:13]} {[%emt 00:00:09]} Kxe7
{[%clk 00:26:38]} {[%emt 00:00:09]} 41. Qxe5+ {[%clk 00:57:38]} {[%emt
00:00:05]} Kf8 {[%clk 00:25:46]} {[%emt 00:01:21]} 42. a6 {[%clk 00:57:44]}
{[%emt 00:00:24]} f6 {[%clk 00:21:54]} {[%emt 00:04:23]} 43. Qxf6+ {[%clk
00:58:01]} {[%emt 00:00:13]} Kg8 {[%clk 00:22:16]} {[%emt 00:00:07]} 44. a7
{[%clk 00:58:18]} {[%emt 00:00:13]} g3+ {[%clk 00:22:43]} {[%emt 00:00:03]} 45.
fxg3 {[%clk 00:58:09]} {[%emt 00:00:40]} Ra1 {[%clk 00:20:39]} {[%emt
00:02:34]} 46. Qxa1 {[%clk 00:55:55]} {[%emt 00:02:43]} Kh7 {[%clk 00:20:49]}
{[%emt 00:00:20]} 47. a8=Q {[%clk 00:56:17]} {[%emt 00:00:09]} h4 {[%emt
00:00:15]} 48. Q1a7+ {[%emt 00:00:10]} Kg6 {[%clk 00:20:35]} {[%emt 00:00:56]}
49. Qc6+ {[%clk 00:57:00]} {[%emt 00:00:55]} 1-0

[Event "NJSK 2022 Jeugd C"]
[Site "Almelo, Netherlands"]
[Date "2022.05.04"]
[Round "5.1"]
[White "Van Arendonk, Polle"]
[Black "Zhu, Chenwu"]
[Result "1/2-1/2"]
[TimeControl "90min + 30sec/move"]
[WhiteElo "1784"]
[BlackElo "1968"]

1. e4 {[%clk 01:30:58]} {[%emt 00:00:02]} e5 {[%clk 01:30:53]} {[%emt
00:00:07]} 2. Nf3 {[%clk 01:31:25]} {[%emt 00:00:03]} Nc6 {[%clk 01:31:13]}
{[%emt 00:00:10]} 3. d4 {[%clk 01:31:52]} {[%emt 00:00:03]} exd4 {[%clk
01:31:37]} {[%emt 00:00:05]} 4. Nxd4 {[%clk 01:32:20]} {[%emt 00:00:02]} Bc5
{[%clk 01:31:58]} {[%emt 00:00:10]} 5. Be3 {[%clk 01:32:47]} {[%emt 00:00:03]}
Qf6 {[%clk 01:32:14]} {[%emt 00:00:13]} 6. c3 {[%clk 01:33:14]} {[%emt
00:00:04]} Nge7 {[%clk 01:32:36]} {[%emt 00:00:08]} 7. Bc4 {[%clk 01:33:38]}
{[%emt 00:00:06]} O-O {[%clk 01:32:50]} {[%emt 00:00:17]} 8. O-O {[%clk
01:33:53]} {[%emt 00:00:14]} b6 {[%clk 01:30:57]} {[%emt 00:02:23]} 9. b4
{[%clk 01:27:54]} {[%emt 00:06:29]} Bxd4 {[%clk 01:28:47]} {[%emt 00:02:40]} 10.
Bxd4 {[%clk 01:28:15]} {[%emt 00:00:09]} Nxd4 {[%clk 01:29:08]} {[%emt
00:00:08]} 11. Qxd4 {[%clk 01:27:22]} {[%emt 00:01:23]} Qxd4 {[%clk 01:27:38]}
{[%emt 00:02:01]} 12. cxd4 {[%clk 01:27:50]} {[%emt 00:00:02]} d5 {[%clk
01:25:56]} {[%emt 00:02:11]} 13. exd5 {[%clk 01:26:10]} {[%emt 00:02:11]} Bb7
{[%clk 01:26:11]} {[%emt 00:00:15]} 14. Nc3 {[%clk 01:24:34]} {[%emt 00:02:06]}
Rfd8 {[%clk 01:25:12]} {[%emt 00:01:29]} 15. Rac1 {[%clk 01:22:57]} {[%emt
00:02:07]} Bxd5 {[%clk 01:24:36]} {[%emt 00:01:05]} 16. Nxd5 {[%clk 01:22:35]}
{[%emt 00:00:52]} Nxd5 {[%clk 01:24:56]} {[%emt 00:00:10]} 17. Bxd5 {[%clk
01:22:38]} {[%emt 00:00:27]} Rxd5 {[%clk 01:25:20]} {[%emt 00:00:07]} 18. Rxc7
{[%clk 01:22:07]} {[%emt 00:01:01]} Rxd4 {[%clk 01:25:45]} {[%emt 00:00:06]} 19.
Rfc1 {[%clk 01:19:09]} {[%emt 00:03:27]} g6 {[%clk 01:25:59]} {[%emt 00:00:15]}
20. a3 {[%clk 01:15:48]} {[%emt 00:03:52]} Rd3 {[%clk 01:25:04]} {[%emt
00:01:24]} 21. R7c3 {[%clk 01:15:51]} {[%emt 00:00:28]} Rad8 {[%clk 01:24:00]}
{[%emt 00:01:34]} 22. Kf1 {[%clk 01:13:23]} {[%emt 00:02:58]} 1/2-1/2

[Event "NJSK 2022 Jeugd C"]
[Site "Almelo, Netherlands"]
[Date "2022.05.04"]
[Round "5.2"]
[White "Smeets, Kobe"]
[Black "De Winter, Arthur"]
[Result "0-1"]
[TimeControl "90min + 30sec/move"]
[WhiteElo "1984"]
[BlackElo "2138"]

1. e4 {[%clk 01:30:59]} {[%emt 00:00:01]} c5 {[%clk 01:30:55]} {[%emt
00:00:04]} 2. Nf3 {[%clk 01:31:26]} {[%emt 00:00:03]} Nc6 {[%clk 01:31:24]}
{[%emt 00:00:02]} 3. d4 {[%clk 01:31:50]} {[%emt 00:00:07]} cxd4 {[%clk
01:31:50]} {[%emt 00:00:03]} 4. Nxd4 {[%clk 01:32:15]} {[%emt 00:00:05]} Nf6
{[%clk 01:32:17]} {[%emt 00:00:02]} 5. Nc3 {[%clk 01:32:37]} {[%emt 00:00:08]}
e5 {[%clk 01:32:43]} {[%emt 00:00:03]} 6. Ndb5 {[%clk 01:33:04]} {[%emt
00:00:04]} d6 {[%clk 01:33:09]} {[%emt 00:00:04]} 7. Bg5 {[%clk 01:33:29]}
{[%emt 00:00:05]} a6 {[%clk 01:33:36]} {[%emt 00:00:03]} 8. Na3 {[%clk
01:33:54]} {[%emt 00:00:04]} Be6 {[%clk 01:33:57]} {[%emt 00:00:09]} 9. Nc4
{[%clk 01:33:56]} {[%emt 00:00:29]} Rb8 {[%clk 01:34:23]} {[%emt 00:00:04]} 10.
a4 {[%clk 01:33:41]} {[%emt 00:00:46]} Nd4 {[%clk 01:22:40]} {[%emt 00:12:11]}
11. a5 {[%clk 01:18:22]} {[%emt 00:15:50]} Be7 {[%clk 01:19:40]} {[%emt
00:03:30]} 12. Bxf6 {[%clk 01:16:47]} {[%emt 00:02:05]} Bxf6 {[%clk 01:19:36]}
{[%emt 00:00:34]} 13. Nb6 {[%clk 01:15:15]} {[%emt 00:02:03]} O-O {[%clk
01:13:41]} {[%emt 00:06:24]} 14. Bd3 {[%clk 01:13:01]} {[%emt 00:02:45]} g6
{[%clk 01:10:20]} {[%emt 00:03:50]} 15. O-O {[%clk 01:11:25]} {[%emt 00:02:06]}
Bg7 {[%clk 01:07:24]} {[%emt 00:03:25]} 16. Ncd5 {[%clk 00:47:04]} {[%emt
00:24:51]} f5 {[%clk 01:03:15]} {[%emt 00:04:39]} 17. Ra3 {[%clk 00:45:35]}
{[%emt 00:02:00]} Qh4 {[%clk 00:57:49]} {[%emt 00:05:56]} 18. f3 {[%clk
00:35:56]} {[%emt 00:10:09]} Rf7 {[%clk 00:51:44]} {[%emt 00:06:34]} 19. Rc3
{[%clk 00:33:44]} {[%emt 00:02:42]} Bh6 {[%clk 00:48:11]} {[%emt 00:04:03]} 20.
Qe1 {[%clk 00:31:55]} {[%emt 00:02:20]} Qxe1 {[%clk 00:47:02]} {[%emt
00:01:38]} 21. Rxe1 {[%clk 00:32:20]} {[%emt 00:00:05]} Bd2 {[%clk 00:46:50]}
{[%emt 00:00:42]} 22. Ra1 {[%clk 00:32:48]} {[%emt 00:00:03]} Bxc3 {[%clk
00:45:40]} {[%emt 00:01:39]} 23. Nxc3 {[%clk 00:33:13]} {[%emt 00:00:05]} Kg7
{[%clk 00:40:57]} {[%emt 00:05:13]} 24. Kf2 {[%clk 00:27:16]} {[%emt 00:06:28]}
Rc7 {[%clk 00:35:19]} {[%emt 00:06:07]} 25. Ncd5 {[%clk 00:17:00]} {[%emt
00:10:45]} Bxd5 {[%clk 00:25:38]} {[%emt 00:10:12]} 26. Nxd5 {[%clk 00:17:23]}
{[%emt 00:00:07]} Rf7 {[%clk 00:23:46]} {[%emt 00:02:22]} 27. c3 {[%clk
00:15:59]} {[%emt 00:01:55]} Nb3 {[%clk 00:23:39]} {[%emt 00:00:37]} 28. Ra3
{[%clk 00:16:14]} {[%emt 00:00:15]} Nc5 {[%clk 00:23:53]} {[%emt 00:00:15]} 29.
Ke3 {[%clk 00:16:38]} {[%emt 00:00:06]} Rc8 {[%clk 00:14:55]} {[%emt 00:09:29]}
30. b4 {[%clk 00:15:09]} {[%emt 00:01:59]} Nxd3 {[%clk 00:12:16]} {[%emt
00:03:09]} 31. Kxd3 {[%clk 00:15:32]} {[%emt 00:00:07]} Kh6 {[%clk 00:12:08]}
{[%emt 00:00:38]} 32. Ra2 {[%clk 00:12:25]} {[%emt 00:03:38]} Kg5 {[%clk
00:12:25]} {[%emt 00:00:12]} 33. Rc2 {[%clk 00:11:41]} {[%emt 00:01:15]} h5
{[%clk 00:09:40]} {[%emt 00:03:15]} 34. Ke3 {[%clk 00:11:16]} {[%emt 00:00:54]}
fxe4 {[%clk 00:09:33]} {[%emt 00:00:37]} 35. Kxe4 {[%clk 00:11:39]} {[%emt
00:00:07]} Rc4+ {[%clk 00:09:34]} {[%emt 00:00:30]} 36. Ke3 {[%clk 00:09:11]}
{[%emt 00:02:58]} Kf5 {[%clk 00:09:17]} {[%emt 00:00:47]} 37. Kd3 {[%clk
00:07:30]} {[%emt 00:02:11]} Rc6 {[%clk 00:08:58]} {[%emt 00:00:48]} 38. Ke3
{[%clk 00:04:38]} {[%emt 00:03:23]} g5 {[%clk 00:08:05]} {[%emt 00:01:22]} 39.
Kd3 {[%clk 00:02:35]} {[%emt 00:02:33]} Ke6 {[%clk 00:07:26]} {[%emt 00:01:08]}
40. c4 {[%clk 00:02:45]} {[%emt 00:00:21]} g4 {[%clk 00:05:59]} {[%emt
00:01:58]} 41. fxg4 {[%clk 00:02:58]} {[%emt 00:00:17]} hxg4 {[%clk 00:06:23]}
{[%emt 00:00:05]} 42. Ne3 {[%clk 00:02:56]} {[%emt 00:00:32]} Rf4 {[%clk
00:06:37]} {[%emt 00:00:16]} 43. g3 {[%clk 00:01:51]} {[%emt 00:01:36]} Rd4+
{[%clk 00:06:57]} {[%emt 00:00:10]} 44. Ke2 {[%clk 00:02:16]} {[%emt 00:00:05]}
Rc8 {[%clk 00:06:43]} {[%emt 00:00:44]} 45. Rd2 {[%clk 00:02:05]} {[%emt
00:00:41]} Rcxc4 {[%clk 00:05:01]} {[%emt 00:02:12]} 46. Nxc4 {[%clk 00:02:25]}
{[%emt 00:00:09]} Rxc4 {[%clk 00:05:29]} {[%emt 00:00:02]} 47. Rb2 {[%clk
00:02:43]} {[%emt 00:00:13]} Kd5 {[%clk 00:04:17]} {[%emt 00:01:41]} 48. b5
{[%clk 00:02:42]} {[%emt 00:00:31]} Ra4 {[%clk 00:04:24]} {[%emt 00:00:23]} 49.
Rd2+ {[%clk 00:02:14]} {[%emt 00:00:58]} Ke6 {[%emt 00:00:46]} 0-1

[Event "NJSK 2022 Jeugd C"]
[Site "Almelo, Netherlands"]
[Date "2022.05.04"]
[Round "5.3"]
[White "Arnold, Rhys"]
[Black "Kumar, Prajit Sai"]
[Result "0-1"]
[TimeControl "90min + 30sec/move"]
[WhiteElo "1846"]
[BlackElo "2042"]

1. e4 {[%clk 01:30:58]} c6 {[%clk 01:30:57]} {[%emt 00:00:03]} 2. Nf3 {[%clk
01:31:20]} {[%emt 00:00:09]} d5 {[%clk 01:31:23]} {[%emt 00:00:04]} 3. Nc3
{[%clk 01:31:46]} {[%emt 00:00:04]} dxe4 {[%clk 01:31:49]} {[%emt 00:00:04]} 4.
Nxe4 {[%clk 01:32:14]} {[%emt 00:00:02]} Nf6 {[%clk 01:32:11]} {[%emt
00:00:08]} 5. Ng3 {[%clk 01:27:18]} {[%emt 00:05:26]} h5 {[%clk 01:30:12]}
{[%emt 00:02:29]} 6. h4 {[%clk 01:26:39]} {[%emt 00:01:09]} Bg4 {[%clk
01:30:15]} {[%emt 00:00:26]} 7. Be2 {[%clk 01:24:02]} {[%emt 00:03:07]} e6
{[%clk 01:29:20]} {[%emt 00:01:25]} 8. Ng5 {[%clk 01:16:12]} {[%emt 00:08:20]}
Bxe2 {[%clk 01:28:31]} {[%emt 00:01:20]} 9. Qxe2 {[%clk 01:16:21]} {[%emt
00:00:20]} Bd6 {[%clk 01:26:24]} {[%emt 00:02:37]} 10. N3e4 {[%clk 01:15:08]}
{[%emt 00:01:43]} Nxe4 {[%clk 01:26:22]} {[%emt 00:00:32]} 11. Nxe4 {[%clk
01:15:29]} {[%emt 00:00:09]} Be7 {[%clk 01:23:45]} {[%emt 00:03:07]} 12. g3
{[%clk 01:14:46]} {[%emt 00:01:13]} Nd7 {[%clk 01:23:56]} {[%emt 00:00:18]} 13.
d3 {[%clk 01:12:20]} {[%emt 00:02:57]} Qc7 {[%clk 01:21:26]} {[%emt 00:03:00]}
14. Bg5 {[%clk 01:11:14]} {[%emt 00:01:35]} f6 {[%clk 01:21:09]} {[%emt
00:00:47]} 15. Be3 {[%clk 01:11:31]} {[%emt 00:00:13]} c5 {[%clk 01:21:20]}
{[%emt 00:00:20]} 16. Nc3 {[%clk 01:07:52]} {[%emt 00:04:09]} Qc6 {[%clk
01:21:14]} {[%emt 00:00:35]} 17. O-O-O {[%clk 01:06:50]} {[%emt 00:01:32]}
O-O-O {[%clk 01:20:36]} {[%emt 00:01:09]} 18. f4 {[%clk 01:06:29]} {[%emt
00:00:51]} Kb8 {[%clk 01:18:52]} {[%emt 00:02:13]} 19. Kb1 {[%clk 01:06:29]}
{[%emt 00:00:30]} Nb6 {[%clk 01:16:02]} {[%emt 00:03:20]} 20. Rhe1 {[%clk
01:05:17]} {[%emt 00:01:42]} Bd6 {[%clk 01:12:03]} {[%emt 00:04:30]} 21. Ne4
{[%clk 01:03:00]} {[%emt 00:02:47]} Nd5 {[%clk 01:10:55]} {[%emt 00:01:38]} 22.
Nxd6 {[%clk 01:01:44]} {[%emt 00:01:45]} Rxd6 {[%clk 01:11:15]} {[%emt
00:00:11]} 23. c4 {[%clk 00:59:29]} {[%emt 00:02:44]} Nb4 {[%clk 01:04:16]}
{[%emt 00:07:28]} 24. Bc1 {[%clk 00:37:09]} {[%emt 00:22:51]} Rhd8 {[%clk
01:01:40]} {[%emt 00:03:06]} 25. Rd2 {[%clk 00:36:41]} {[%emt 00:00:59]} Nxd3
{[%clk 00:59:21]} {[%emt 00:02:48]} 26. Red1 {[%clk 00:36:58]} {[%emt
00:00:13]} Nxc1 {[%clk 00:58:32]} {[%emt 00:01:19]} 27. Kxc1 {[%clk 00:36:14]}
{[%emt 00:01:14]} Rxd2 {[%clk 00:57:40]} {[%emt 00:01:22]} 28. Rxd2 {[%clk
00:36:33]} {[%emt 00:00:12]} Rxd2 {[%clk 00:57:57]} {[%emt 00:00:12]} 29. Kxd2
{[%clk 00:34:16]} {[%emt 00:02:48]} Qe8 {[%clk 00:54:25]} {[%emt 00:04:01]} 30.
Kc1 {[%clk 00:33:11]} {[%emt 00:01:34]} g6 {[%clk 00:53:21]} {[%emt 00:01:35]}
31. Qd3 {[%clk 00:31:52]} {[%emt 00:01:49]} Kc7 {[%clk 00:53:15]} {[%emt
00:00:35]} 32. Qc3 {[%clk 00:31:53]} {[%emt 00:00:30]} Qe7 {[%clk 00:52:42]}
{[%emt 00:01:03]} 33. Kb1 {[%clk 00:27:10]} {[%emt 00:05:13]} Qd6 {[%clk
00:52:22]} {[%emt 00:00:50]} 34. a3 {[%clk 00:27:15]} {[%emt 00:00:26]} e5
{[%clk 00:44:09]} {[%emt 00:08:43]} 35. fxe5 {[%clk 00:26:56]} {[%emt
00:00:49]} fxe5 {[%clk 00:44:30]} {[%emt 00:00:08]} 36. Qe3 {[%clk 00:15:15]}
{[%emt 00:12:11]} Qd1+ {[%clk 00:43:19]} {[%emt 00:01:41]} 37. Ka2 {[%clk
00:15:33]} {[%emt 00:00:12]} Qd4 {[%clk 00:43:32]} {[%emt 00:00:17]} 38. Qh6
{[%clk 00:15:13]} {[%emt 00:00:50]} Qxc4+ {[%clk 00:43:50]} {[%emt 00:00:12]}
39. Kb1 {[%clk 00:15:33]} {[%emt 00:00:11]} Qd3+ {[%clk 00:43:02]} {[%emt
00:01:17]} 40. Ka2 {[%clk 00:15:32]} {[%emt 00:00:31]} Qd6 {[%clk 00:42:33]}
{[%emt 00:01:00]} 41. Qg7+ {[%clk 00:15:41]} {[%emt 00:00:20]} Kb6 {[%clk
00:42:38]} {[%emt 00:00:25]} 42. Qf7 {[%clk 00:13:57]} {[%emt 00:02:14]} a6
{[%clk 00:42:46]} {[%emt 00:00:21]} 43. Qc4 {[%clk 00:14:07]} {[%emt 00:00:20]}
Ka7 {[%clk 00:42:59]} {[%emt 00:00:18]} 44. b4 {[%clk 00:12:49]} {[%emt
00:01:48]} cxb4 {[%clk 00:41:11]} {[%emt 00:02:17]} 45. axb4 {[%clk 00:13:00]}
{[%emt 00:00:19]} Qd4 {[%clk 00:40:44]} {[%emt 00:00:58]} 46. Qe6 {[%clk
00:12:40]} {[%emt 00:00:50]} Qd2+ {[%clk 00:40:13]} {[%emt 00:01:01]} 47. Ka3
{[%clk 00:12:48]} {[%emt 00:00:21]} Qc3+ {[%clk 00:40:29]} {[%emt 00:00:14]} 48.
Ka2 {[%clk 00:13:13]} {[%emt 00:00:05]} Qxg3 {[%clk 00:40:38]} {[%emt
00:00:22]} 49. Qd6 {[%clk 00:13:28]} {[%emt 00:00:15]} Qf2+ {[%clk 00:40:27]}
{[%emt 00:00:40]} 50. Ka3 {[%clk 00:13:46]} {[%emt 00:00:13]} e4 {[%clk
00:40:22]} {[%emt 00:00:34]} 51. Qe7 {[%clk 00:14:05]} {[%emt 00:00:12]} Qd4
{[%clk 00:40:21]} {[%emt 00:00:30]} 52. Qc7 {[%clk 00:12:36]} {[%emt 00:01:59]}
e3 {[%clk 00:39:36]} {[%emt 00:01:15]} 53. Qc2 {[%clk 00:12:32]} {[%emt
00:00:34]} Qe5 {[%clk 00:39:32]} {[%emt 00:00:33]} 0-1

[Event "NJSK 2022 Jeugd C"]
[Site "Almelo, Netherlands"]
[Date "2022.05.04"]
[Round "5.4"]
[White "Kazarjan, Gachatur"]
[Black "Van Batenburg, Mees"]
[Result "0-1"]
[TimeControl "90min + 30sec/move"]
[WhiteElo "1661"]
[BlackElo "1713"]

1. e4 {[%clk 01:30:58]} {[%emt 00:00:02]} c5 {[%clk 01:30:57]} {[%emt
00:00:04]} 2. Nf3 {[%clk 01:31:24]} {[%emt 00:00:04]} Nc6 {[%clk 01:31:23]}
{[%emt 00:00:04]} 3. d4 {[%clk 01:31:50]} {[%emt 00:00:04]} cxd4 {[%clk
01:31:47]} {[%emt 00:00:06]} 4. Nxd4 {[%clk 01:32:17]} {[%emt 00:00:03]} e5
{[%clk 01:32:13]} {[%emt 00:00:04]} 5. Nb5 {[%clk 01:32:43]} {[%emt 00:00:03]}
d6 {[%clk 01:32:37]} {[%emt 00:00:07]} 6. c4 {[%clk 01:32:54]} {[%emt
00:00:19]} g6 {[%clk 01:32:12]} {[%emt 00:00:55]} 7. N1c3 {[%clk 01:33:05]}
{[%emt 00:00:19]} a6 {[%clk 01:32:16]} {[%emt 00:00:27]} 8. Na3 {[%clk
01:33:28]} {[%emt 00:00:07]} Be6 {[%clk 01:30:39]} {[%emt 00:02:06]} 9. Nc2
{[%clk 01:33:08]} {[%emt 00:00:50]} f5 {[%clk 01:26:23]} {[%emt 00:04:47]} 10.
exf5 {[%clk 01:32:21]} {[%emt 00:01:17]} gxf5 {[%clk 01:26:40]} {[%emt
00:00:13]} 11. Qh5+ {[%clk 01:29:56]} {[%emt 00:02:54]} Kd7 {[%clk 01:26:58]}
{[%emt 00:00:13]} 12. Nd5 {[%clk 01:30:00]} {[%emt 00:00:25]} Bxd5 {[%clk
01:25:15]} {[%emt 00:02:13]} 13. cxd5 {[%clk 01:30:11]} {[%emt 00:00:19]} Nce7
{[%clk 01:25:33]} {[%emt 00:00:12]} 14. Bd3 {[%clk 01:27:12]} {[%emt 00:03:28]}
e4 {[%clk 01:21:29]} {[%emt 00:04:34]} 15. Bc4 {[%clk 01:26:31]} {[%emt
00:01:11]} Rc8 {[%clk 01:05:53]} {[%emt 00:16:07]} 16. Bb3 {[%clk 01:26:11]}
{[%emt 00:00:50]} Qe8 {[%clk 01:05:12]} {[%emt 00:01:11]} 17. Qxe8+ {[%clk
01:24:37]} {[%emt 00:02:03]} Kxe8 {[%clk 01:05:06]} {[%emt 00:00:37]} 18. Nd4
{[%clk 01:23:32]} {[%emt 00:01:35]} Nf6 {[%clk 01:03:40]} {[%emt 00:01:56]} 19.
Bg5 {[%clk 01:22:28]} {[%emt 00:01:33]} Nfxd5 {[%clk 01:02:37]} {[%emt
00:01:34]} 20. Bxe7 {[%clk 01:22:15]} {[%emt 00:00:43]} Nxe7 {[%clk 01:01:43]}
{[%emt 00:01:24]} 21. Be6 {[%clk 01:22:38]} {[%emt 00:00:07]} Rc5 {[%clk
01:01:14]} {[%emt 00:00:59]} 22. b4 {[%clk 01:22:43]} {[%emt 00:00:25]} Re5
{[%clk 01:00:59]} {[%emt 00:00:45]} 23. O-O {[%clk 01:23:04]} {[%emt 00:00:08]}
Nc6 {[%clk 01:00:29]} {[%emt 00:01:02]} 24. Nxc6 {[%clk 01:22:58]} {[%emt
00:00:36]} bxc6 {[%clk 01:00:44]} {[%emt 00:00:13]} 25. Bc8 {[%clk 01:22:47]}
{[%emt 00:00:42]} Bh6 {[%clk 00:44:58]} {[%emt 00:16:16]} 26. Bxa6 {[%clk
01:22:20]} {[%emt 00:00:56]} Kd7 {[%clk 00:45:06]} {[%emt 00:00:23]} 27. a4
{[%clk 01:20:46]} {[%emt 00:02:05]} Ra8 {[%clk 00:41:30]} {[%emt 00:04:05]} 28.
b5 {[%clk 01:20:57]} {[%emt 00:00:19]} Kc7 {[%clk 00:39:04]} {[%emt 00:02:55]}
29. Ra3 {[%clk 01:20:03]} {[%emt 00:01:24]} f4 {[%clk 00:32:23]} {[%emt
00:07:11]} 30. Rc1 {[%clk 01:18:44]} {[%emt 00:01:49]} c5 {[%clk 00:31:26]}
{[%emt 00:01:28]} 31. Rb1 {[%clk 01:18:55]} {[%emt 00:00:18]} Kb6 {[%clk
00:29:21]} {[%emt 00:02:36]} 32. a5+ {[%clk 01:18:39]} {[%emt 00:00:46]} Ka7
{[%clk 00:28:26]} {[%emt 00:01:25]} 33. Rd1 {[%clk 01:18:01]} {[%emt 00:01:07]}
Rd8 {[%clk 00:25:52]} {[%emt 00:03:04]} 34. Rh3 {[%clk 01:18:12]} {[%emt
00:00:20]} Re6 {[%clk 00:25:21]} {[%emt 00:01:01]} 35. Rh5 {[%clk 01:18:13]}
{[%emt 00:00:28]} e3 {[%clk 00:19:34]} {[%emt 00:06:17]} 36. fxe3 {[%clk
01:16:15]} {[%emt 00:02:29]} fxe3 {[%clk 00:19:42]} {[%emt 00:00:22]} 37. Rf5
{[%clk 01:16:04]} {[%emt 00:00:41]} Re7 {[%clk 00:18:19]} {[%emt 00:01:53]} 38.
Re1 {[%clk 01:15:41]} {[%emt 00:00:53]} d5 {[%clk 00:17:00]} {[%emt 00:01:50]}
39. Rf6 {[%clk 01:14:18]} {[%emt 00:01:52]} d4 {[%clk 00:16:19]} {[%emt
00:01:12]} 40. Bc8 {[%clk 01:06:06]} {[%emt 00:08:41]} Rxc8 {[%clk 00:12:04]}
{[%emt 00:04:46]} 41. Rxh6 {[%clk 01:04:18]} {[%emt 00:02:17]} d3 {[%clk
00:12:16]} {[%emt 00:00:18]} 42. Rd6 {[%clk 01:04:37]} {[%emt 00:00:10]} c4
{[%clk 00:12:03]} {[%emt 00:00:44]} 43. b6+ {[%clk 01:04:57]} {[%emt 00:00:10]}
Ka6 {[%clk 00:11:04]} {[%emt 00:01:30]} 44. Rb1 {[%clk 01:04:49]} {[%emt
00:00:38]} Rb8 {[%clk 00:09:24]} {[%emt 00:02:09]} 45. Kf1 {[%clk 01:04:03]}
{[%emt 00:01:15]} Rf8+ {[%clk 00:08:44]} {[%emt 00:01:11]} 46. Ke1 {[%clk
01:03:57]} {[%emt 00:00:35]} d2+ {[%clk 00:08:55]} {[%emt 00:00:20]} 47. Rxd2
{[%clk 01:03:42]} {[%emt 00:00:45]} exd2+ {[%clk 00:09:16]} {[%emt 00:00:09]}
48. Kxd2 {[%clk 01:04:07]} {[%emt 00:00:05]} Rf5 {[%clk 00:07:26]} {[%emt
00:02:20]} 49. Kc3 {[%clk 01:04:30]} {[%emt 00:00:07]} Rb5 {[%clk 00:07:38]}
{[%emt 00:00:17]} 50. Rf1 {[%clk 01:04:46]} {[%emt 00:00:13]} Rxa5 {[%clk
00:07:44]} {[%emt 00:00:26]} 51. Kxc4 {[%clk 01:05:10]} {[%emt 00:00:06]} Kxb6
{[%clk 00:07:40]} {[%emt 00:00:34]} 52. Rf2 {[%clk 01:05:29]} {[%emt 00:00:11]}
Rae5 {[%clk 00:07:17]} {[%emt 00:00:52]} 53. Kd4 {[%emt 00:00:23]} 0-1